[Event "Titled Tuesday Blitz April 18 Early 2023"]
[White "Perez Cruz, Adianet"]
[Black "Garv Gaur"]
[WhiteFideId "3510115"]
[BlackFideId "45030839"]
[WhiteElo "1976"]
[BlackElo "2068"]
[Result "0-1"]
[Round "01"]
[TimeControl "180+2"]
[Date "2023.04.18"]
[WhiteClock "0:01:40"]
[BlackClock "0:02:24"]

1. d4 {[%clk 0:02:59]}  Nf6 {[%clk 0:02:59]} 2. Bg5 {[%clk 0:02:58]}  d5 {[%clk 0:02:58]} 3. Bxf6 {[%clk 0:02:58]}  exf6 {[%clk 0:02:58]} 4. e3 {[%clk 0:02:59]}  Be6 {[%clk 0:02:57]} 5. Ne2 {[%clk 0:02:58]}  Bd6 {[%clk 0:02:56]} 6. h4 {[%clk 0:02:58]}  O-O {[%clk 0:02:55]} 7. g3 {[%clk 0:02:58]}  Re8 {[%clk 0:02:54]} 8. Nd2 {[%clk 0:02:55]}  c5 {[%clk 0:02:54]} 9. c3 {[%clk 0:02:54]}  Nc6 {[%clk 0:02:54]} 10. Nf4 {[%clk 0:02:51]}  Bxf4 {[%clk 0:02:51]} 11. gxf4 {[%clk 0:02:50]}  cxd4 {[%clk 0:02:52]} 12. cxd4 {[%clk 0:02:49]}  Nxd4 {[%clk 0:02:49]} 13. Qa4 {[%clk 0:02:42]}  Qb6 {[%clk 0:02:30]} 14. Qxd4 {[%clk 0:01:48]}  Qxd4 {[%clk 0:02:28]} 15. exd4 {[%clk 0:01:49]}  Bg4+ {[%clk 0:02:27]} 16. Be2 {[%clk 0:01:41]}  Rxe2+ {[%clk 0:02:27]} 17. Kd1 {[%clk 0:01:40]}  Rxf2+ {[%clk 0:02:25]} 18. Kc1 {[%clk 0:01:40]}  Rc8+ {[%clk 0:02:24]} 0-1


[Site "https://www.chess.com"]

[Event "Titled Tuesday Blitz April 18 Early 2023"]
[White "Ljukin, Sergei"]
[Black "Sanchez, Robert"]
[WhiteFideId "14102200"]
[BlackFideId "2034360"]
[WhiteElo "2312"]
[BlackElo "1960"]
[Result "1-0"]
[Round "01"]
[TimeControl "180+2"]
[Date "2023.04.18"]
[WhiteClock "0:01:46"]
[BlackClock "0:01:45"]

1. e4 {[%clk 0:02:58]}  d5 {[%clk 0:02:53]} 2. exd5 {[%clk 0:02:58]}  Qxd5 {[%clk 0:02:53]} 3. Nc3 {[%clk 0:02:58]}  Qe6+ {[%clk 0:02:53]} 4. Be2 {[%clk 0:02:58]}  Qg6 {[%clk 0:02:54]} 5. Nf3 {[%clk 0:02:47]}  Qxg2 {[%clk 0:02:53]} 6. Rg1 {[%clk 0:02:46]}  Qh3 {[%clk 0:02:54]} 7. d4 {[%clk 0:02:42]}  c6 {[%clk 0:02:48]} 8. d5 {[%clk 0:02:39]}  Qd7 {[%clk 0:02:42]} 9. Bf4 {[%clk 0:02:37]}  Nf6 {[%clk 0:02:40]} 10. dxc6 {[%clk 0:02:31]}  Qxd1+ {[%clk 0:02:40]} 11. Rxd1 {[%clk 0:02:31]}  bxc6 {[%clk 0:02:36]} 12. Ne5 {[%clk 0:02:26]}  e6 {[%clk 0:02:32]} 13. Bf3 {[%clk 0:02:21]}  Nd5 {[%clk 0:02:32]} 14. Nxd5 {[%clk 0:02:21]}  exd5 {[%clk 0:02:32]} 15. c4 {[%clk 0:02:20]}  Bb4+ {[%clk 0:02:31]} 16. Ke2 {[%clk 0:02:16]}  f6 {[%clk 0:02:28]} 17. Nd3 {[%clk 0:02:14]}  Ba5 {[%clk 0:02:11]} 18. cxd5 {[%clk 0:02:11]}  Bb7 {[%clk 0:02:00]} 19. Nc5 {[%clk 0:02:09]}  Bc8 {[%clk 0:01:58]} 20. dxc6 {[%clk 0:02:07]}  O-O {[%clk 0:01:57]} 21. c7 {[%clk 0:02:03]}  Re8+ {[%clk 0:01:57]} 22. Be3 {[%clk 0:02:03]}  Na6 {[%clk 0:01:55]} 23. Bxa8 {[%clk 0:01:54]}  Nxc5 {[%clk 0:01:56]} 24. Bc6 {[%clk 0:01:46]}  Rf8 {[%clk 0:01:45]} 1-0


[Site "https://www.chess.com"]

[Event "Titled Tuesday Blitz April 18 Early 2023"]
[White "Omelja, Artem"]
[Black "Butolo, Alexandru-Mircea"]
[WhiteFideId "14119846"]
[BlackFideId "1261649"]
[WhiteElo "2404"]
[BlackElo "1861"]
[Result "1-0"]
[Round "01"]
[TimeControl "180+2"]
[Date "2023.04.18"]
[WhiteClock "0:00:10"]
[BlackClock "0:00:01"]

1. d4 {[%clk 0:02:59]}  Nf6 {[%clk 0:02:58]} 2. c4 {[%clk 0:02:50]}  e6 {[%clk 0:02:55]} 3. Nf3 {[%clk 0:02:49]}  Bb4+ {[%clk 0:02:51]} 4. Bd2 {[%clk 0:02:47]}  Qe7 {[%clk 0:02:49]} 5. a3 {[%clk 0:02:30]}  Bxd2+ {[%clk 0:02:48]} 6. Qxd2 {[%clk 0:02:31]}  d5 {[%clk 0:02:45]} 7. Nc3 {[%clk 0:02:29]}  O-O {[%clk 0:02:43]} 8. e3 {[%clk 0:02:29]}  Rd8 {[%clk 0:02:43]} 9. Qc2 {[%clk 0:02:24]}  b6 {[%clk 0:02:35]} 10. Ne5 {[%clk 0:02:18]}  Bb7 {[%clk 0:02:33]} 11. Be2 {[%clk 0:02:11]}  Nbd7 {[%clk 0:02:33]} 12. Nxd7 {[%clk 0:01:42]}  Qxd7 {[%clk 0:02:27]} 13. Bf3 {[%clk 0:01:42]}  c5 {[%clk 0:02:23]} 14. dxc5 {[%clk 0:01:40]}  bxc5 {[%clk 0:02:23]} 15. cxd5 {[%clk 0:01:33]}  exd5 {[%clk 0:02:22]} 16. O-O {[%clk 0:01:26]}  d4 {[%clk 0:02:06]} 17. Bxb7 {[%clk 0:01:24]}  Qxb7 {[%clk 0:02:06]} 18. Na4 {[%clk 0:01:20]}  dxe3 {[%clk 0:02:03]} 19. fxe3 {[%clk 0:01:20]}  Qe7 {[%clk 0:01:59]} 20. Qxc5 {[%clk 0:01:16]}  Qe8 {[%clk 0:01:40]} 21. Nc3 {[%clk 0:01:09]}  a6 {[%clk 0:01:16]} 22. Rad1 {[%clk 0:00:54]}  Rac8 {[%clk 0:01:07]} 23. Qg5 {[%clk 0:00:50]}  h6 {[%clk 0:00:56]} 24. Qf4 {[%clk 0:00:43]}  Qe6 {[%clk 0:00:27]} 25. h3 {[%clk 0:00:19]}  Rxd1 {[%clk 0:00:18]} 26. Rxd1 {[%clk 0:00:19]}  Re8 {[%clk 0:00:19]} 27. Rd6 {[%clk 0:00:12]}  Qxe3+ {[%clk 0:00:18]} 28. Qxe3 {[%clk 0:00:13]}  Rxe3 {[%clk 0:00:18]} 29. Rxa6 {[%clk 0:00:14]}  Re1+ {[%clk 0:00:13]} 30. Kf2 {[%clk 0:00:13]}  Re5 {[%clk 0:00:12]} 31. Ra8+ {[%clk 0:00:10]}  Kh7 {[%clk 0:00:11]} 32. a4 {[%clk 0:00:11]}  Rf5+ {[%clk 0:00:09]} 33. Kg1 {[%clk 0:00:10]}  Nd7 {[%clk 0:00:03]} 34. a5 {[%clk 0:00:10]}  Nc5 {[%clk 0:00:02]} 35. b4 {[%clk 0:00:10]}  Nd3 {[%clk 0:00:01]} 36. b5 {[%clk 0:00:10]} 1-0


[Site "https://www.chess.com"]

[Event "Titled Tuesday Blitz April 18 Early 2023"]
[White "Naroditsky, Daniel"]
[Black "Aaditya Dhingra"]
[WhiteFideId "2026961"]
[BlackFideId "25678191"]
[WhiteElo "2633"]
[BlackElo "2083"]
[Result "1/2-1/2"]
[Round "02"]
[TimeControl "180+2"]
[Date "2023.04.18"]
[WhiteClock "0:00:14"]
[BlackClock "0:01:02"]

1. d4 {[%clk 0:03:00]}  Nf6 {[%clk 0:02:58]} 2. Nc3 {[%clk 0:03:01]}  d5 {[%clk 0:02:57]} 3. Bf4 {[%clk 0:03:01]}  c5 {[%clk 0:02:55]} 4. e4 {[%clk 0:03:01]}  dxe4 {[%clk 0:02:53]} 5. dxc5 {[%clk 0:03:01]}  Qa5 {[%clk 0:02:51]} 6. Qd2 {[%clk 0:03:00]}  a6 {[%clk 0:02:41]} 7. O-O-O {[%clk 0:02:47]}  Nc6 {[%clk 0:02:37]} 8. f3 {[%clk 0:02:34]}  e6 {[%clk 0:02:18]} 9. Bd6 {[%clk 0:02:26]}  Bxd6 {[%clk 0:02:14]} 10. Qxd6 {[%clk 0:02:01]}  Bd7 {[%clk 0:02:12]} 11. fxe4 {[%clk 0:01:53]}  O-O-O {[%clk 0:02:07]} 12. Qg3 {[%clk 0:01:20]}  Qxc5 {[%clk 0:02:02]} 13. Nf3 {[%clk 0:01:15]}  Nh5 {[%clk 0:01:59]} 14. Qh4 {[%clk 0:01:11]}  Ne5 {[%clk 0:01:54]} 15. Nxe5 {[%clk 0:01:02]}  Qxe5 {[%clk 0:01:53]} 16. Be2 {[%clk 0:00:58]}  Qf4+ {[%clk 0:01:51]} 17. Qxf4 {[%clk 0:00:59]}  Nxf4 {[%clk 0:01:51]} 18. Bf3 {[%clk 0:00:56]}  Bc6 {[%clk 0:01:52]} 19. Rxd8+ {[%clk 0:00:53]}  Rxd8 {[%clk 0:01:51]} 20. Rf1 {[%clk 0:00:54]}  Rd7 {[%clk 0:01:47]} 21. g3 {[%clk 0:00:51]}  Ng6 {[%clk 0:01:47]} 22. Be2 {[%clk 0:00:50]}  Ne5 {[%clk 0:01:47]} 23. h4 {[%clk 0:00:48]}  Kd8 {[%clk 0:01:47]} 24. Rf4 {[%clk 0:00:48]}  Ke7 {[%clk 0:01:47]} 25. Nd1 {[%clk 0:00:47]}  Rd4 {[%clk 0:01:46]} 26. Nf2 {[%clk 0:00:43]}  Ng6 {[%clk 0:01:44]} 27. Rg4 {[%clk 0:00:36]}  Kf8 {[%clk 0:01:36]} 28. c3 {[%clk 0:00:33]}  Ra4 {[%clk 0:01:35]} 29. a3 {[%clk 0:00:31]}  Ne5 {[%clk 0:01:33]} 30. Rf4 {[%clk 0:00:31]}  Ng6 {[%clk 0:01:33]} 31. Rg4 {[%clk 0:00:32]}  Ne5 {[%clk 0:01:22]} 32. Rf4 {[%clk 0:00:32]}  g6 {[%clk 0:01:11]} 33. Bd1 {[%clk 0:00:26]}  Ra5 {[%clk 0:01:10]} 34. Bc2 {[%clk 0:00:20]}  Rc5 {[%clk 0:01:08]} 35. Nd3 {[%clk 0:00:17]}  Nxd3+ {[%clk 0:01:07]} 36. Bxd3 {[%clk 0:00:18]}  Re5 {[%clk 0:01:08]} 37. Kd2 {[%clk 0:00:17]}  Ke7 {[%clk 0:01:08]} 38. Ke3 {[%clk 0:00:18]}  f5 {[%clk 0:01:07]} 39. Kd4 {[%clk 0:00:16]}  Ra5 {[%clk 0:01:06]} 40. Ke3 {[%clk 0:00:13]}  Re5 {[%clk 0:01:04]} 41. Kd4 {[%clk 0:00:14]}  Ra5 {[%clk 0:01:02]} 42. Ke3 {[%clk 0:00:14]}  Re5 {[%clk 0:01:02]} 1/2-1/2


[Site "https://www.chess.com"]

[Event "Titled Tuesday Blitz April 18 Early 2023"]
[White "Caruana, Fabiano"]
[Black "Skliarov, Viktor"]
[WhiteFideId "2020009"]
[BlackFideId "14106736"]
[WhiteElo "2837"]
[BlackElo "2317"]
[Result "1-0"]
[Round "02"]
[TimeControl "180+2"]
[Date "2023.04.18"]
[WhiteClock "0:02:30"]
[BlackClock "0:00:51"]

1. c4 {[%clk 0:03:00]}  e5 {[%clk 0:02:59]} 2. Nc3 {[%clk 0:03:00]}  Bb4 {[%clk 0:02:59]} 3. g3 {[%clk 0:02:58]}  Bxc3 {[%clk 0:02:59]} 4. bxc3 {[%clk 0:02:59]}  d6 {[%clk 0:03:00]} 5. Bg2 {[%clk 0:02:59]}  Nf6 {[%clk 0:03:00]} 6. e4 {[%clk 0:02:59]}  O-O {[%clk 0:02:58]} 7. Ne2 {[%clk 0:02:59]}  a6 {[%clk 0:02:54]} 8. a4 {[%clk 0:02:58]}  c6 {[%clk 0:02:50]} 9. O-O {[%clk 0:02:57]}  Be6 {[%clk 0:02:45]} 10. d3 {[%clk 0:02:57]}  d5 {[%clk 0:02:44]} 11. exd5 {[%clk 0:02:47]}  cxd5 {[%clk 0:02:44]} 12. c5 {[%clk 0:02:48]}  Nc6 {[%clk 0:02:23]} 13. d4 {[%clk 0:02:48]}  Qd7 {[%clk 0:02:07]} 14. Rb1 {[%clk 0:02:41]}  Rab8 {[%clk 0:01:40]} 15. dxe5 {[%clk 0:02:39]}  Nxe5 {[%clk 0:01:40]} 16. Bf4 {[%clk 0:02:38]}  Qc7 {[%clk 0:01:40]} 17. Nd4 {[%clk 0:02:37]}  Nfd7 {[%clk 0:01:33]} 18. Re1 {[%clk 0:02:36]}  Rfe8 {[%clk 0:00:54]} 19. Qh5 {[%clk 0:02:32]}  f6 {[%clk 0:00:51]} 20. Nxe6 {[%clk 0:02:30]}  Rxe6 {[%clk 0:00:51]} 21. Bxd5 {[%clk 0:02:30]} 1-0


[Site "https://www.chess.com"]

[Event "Titled Tuesday Blitz April 18 Early 2023"]
[White "Bluebaum, Matthias"]
[Black "Brunner, Nicolas"]
[WhiteFideId "24651516"]
[BlackFideId "620246"]
[WhiteElo "2638"]
[BlackElo "2327"]
[Result "0-1"]
[Round "02"]
[TimeControl "180+2"]
[Date "2023.04.18"]
[WhiteClock "0:00:18"]
[BlackClock "0:00:14"]

1. d4 {[%clk 0:03:00]}  d5 {[%clk 0:02:59]} 2. c4 {[%clk 0:02:59]}  e6 {[%clk 0:03:00]} 3. Nc3 {[%clk 0:02:59]}  Nf6 {[%clk 0:03:00]} 4. cxd5 {[%clk 0:03:00]}  exd5 {[%clk 0:03:00]} 5. Bf4 {[%clk 0:03:01]}  c6 {[%clk 0:02:55]} 6. e3 {[%clk 0:03:01]}  Bd6 {[%clk 0:02:55]} 7. Bxd6 {[%clk 0:03:01]}  Qxd6 {[%clk 0:02:55]} 8. Bd3 {[%clk 0:03:02]}  O-O {[%clk 0:02:54]} 9. Nge2 {[%clk 0:03:02]}  Nbd7 {[%clk 0:02:51]} 10. Qd2 {[%clk 0:03:03]}  Re8 {[%clk 0:02:50]} 11. f3 {[%clk 0:03:03]}  c5 {[%clk 0:02:38]} 12. O-O-O {[%clk 0:03:02]}  c4 {[%clk 0:02:29]} 13. Bc2 {[%clk 0:03:00]}  Rb8 {[%clk 0:02:28]} 14. e4 {[%clk 0:02:59]}  dxe4 {[%clk 0:02:01]} 15. fxe4 {[%clk 0:02:58]}  Qc6 {[%clk 0:01:48]} 16. e5 {[%clk 0:02:48]}  Nd5 {[%clk 0:01:48]} 17. Nxd5 {[%clk 0:02:41]}  Qxd5 {[%clk 0:01:48]} 18. Nf4 {[%clk 0:02:42]}  Qb5 {[%clk 0:01:44]} 19. Nh5 {[%clk 0:02:41]}  Nf8 {[%clk 0:01:36]} 20. Nf6+ {[%clk 0:02:05]}  gxf6 {[%clk 0:01:36]} 21. exf6 {[%clk 0:02:06]}  Qh5 {[%clk 0:01:30]} 22. g4 {[%clk 0:01:52]}  Qh4 {[%clk 0:01:28]} 23. Qf4 {[%clk 0:01:51]}  Bd7 {[%clk 0:01:24]} 24. d5 {[%clk 0:01:41]}  Ng6 {[%clk 0:01:23]} 25. Qc7 {[%clk 0:01:36]}  Bxg4 {[%clk 0:01:17]} 26. Rdg1 {[%clk 0:01:36]}  Bf3 {[%clk 0:01:16]} 27. Bxg6 {[%clk 0:01:33]}  Qh6+ {[%clk 0:01:11]} 28. Kb1 {[%clk 0:01:24]}  hxg6 {[%clk 0:01:10]} 29. d6 {[%clk 0:01:09]}  Bxh1 {[%clk 0:01:10]} 30. d7 {[%clk 0:01:10]}  Be4+ {[%clk 0:01:07]} 31. Ka1 {[%clk 0:01:10]}  Red8 {[%clk 0:01:07]} 32. Rd1 {[%clk 0:01:05]}  Bd3 {[%clk 0:01:02]} 33. a3 {[%clk 0:00:59]}  Qg5 {[%clk 0:01:00]} 34. Qd6 {[%clk 0:00:58]}  b5 {[%clk 0:00:57]} 35. Re1 {[%clk 0:00:57]}  Bf5 {[%clk 0:00:49]} 36. Qe5 {[%clk 0:00:45]}  Qh6 {[%clk 0:00:35]} 37. Rd1 {[%clk 0:00:33]}  Bxd7 {[%clk 0:00:29]} 38. Qe7 {[%clk 0:00:32]}  Qf8 {[%clk 0:00:21]} 39. Qe3 {[%clk 0:00:29]}  Bf5 {[%clk 0:00:19]} 40. Rf1 {[%clk 0:00:28]}  Re8 {[%clk 0:00:19]} 41. Qg3 {[%clk 0:00:28]}  b4 {[%clk 0:00:18]} 42. Rxf5 {[%clk 0:00:22]}  bxa3 {[%clk 0:00:18]} 43. Rg5 {[%clk 0:00:22]}  axb2+ {[%clk 0:00:17]} 44. Kb1 {[%clk 0:00:23]}  Qh6 {[%clk 0:00:16]} 45. h4 {[%clk 0:00:21]}  c3 {[%clk 0:00:15]} 46. Qxc3 {[%clk 0:00:13]}  Qxh4 {[%clk 0:00:15]} 47. Rg1 {[%clk 0:00:13]}  Qe4+ {[%clk 0:00:15]} 48. Qc2 {[%clk 0:00:13]}  Qxc2+ {[%clk 0:00:14]} 49. Kxc2 {[%clk 0:00:13]}  b1=Q+ {[%clk 0:00:14]} 50. Rxb1 {[%clk 0:00:14]}  Re2+ {[%clk 0:00:14]} 51. Kd3 {[%clk 0:00:13]}  Rxb1 {[%clk 0:00:14]} 52. Kd4 {[%clk 0:00:14]}  Rb6 {[%clk 0:00:14]} 53. Kc5 {[%clk 0:00:15]}  Rxf6 {[%clk 0:00:14]} 54. Kd5 {[%clk 0:00:15]}  g5 {[%clk 0:00:14]} 55. Kc4 {[%clk 0:00:16]}  Rd6 {[%clk 0:00:14]} 56. Kb5 {[%clk 0:00:17]}  Rc2 {[%clk 0:00:14]} 57. Kb4 {[%clk 0:00:18]}  Rb6+ {[%clk 0:00:14]} 58. Ka5 {[%clk 0:00:18]}  Ra2# {[%clk 0:00:14]} 0-1


[Site "https://www.chess.com"]

[Event "Titled Tuesday Blitz April 18 Early 2023"]
[White "Lazavik, Denis"]
[Black "Sieciechowicz, Marcin"]
[WhiteFideId "13515110"]
[BlackFideId "1130170"]
[WhiteElo "2560"]
[BlackElo "2302"]
[Result "1-0"]
[Round "02"]
[TimeControl "180+2"]
[Date "2023.04.18"]
[WhiteClock "0:00:24"]
[BlackClock "0:00:02"]

1. d4 {[%clk 0:02:59]}  d5 {[%clk 0:02:56]} 2. c4 {[%clk 0:02:59]}  c6 {[%clk 0:02:55]} 3. Nf3 {[%clk 0:02:57]}  Nf6 {[%clk 0:02:55]} 4. e3 {[%clk 0:02:55]}  Bf5 {[%clk 0:02:55]} 5. Nc3 {[%clk 0:02:54]}  e6 {[%clk 0:02:55]} 6. Nh4 {[%clk 0:02:54]}  Bg6 {[%clk 0:02:56]} 7. Be2 {[%clk 0:02:52]}  Nbd7 {[%clk 0:02:56]} 8. O-O {[%clk 0:02:51]}  Bd6 {[%clk 0:02:55]} 9. g3 {[%clk 0:02:51]}  Rc8 {[%clk 0:02:48]} 10. Bd2 {[%clk 0:02:48]}  O-O {[%clk 0:02:46]} 11. Nxg6 {[%clk 0:02:48]}  hxg6 {[%clk 0:02:47]} 12. Rc1 {[%clk 0:02:42]}  dxc4 {[%clk 0:02:47]} 13. Bxc4 {[%clk 0:02:41]}  e5 {[%clk 0:02:48]} 14. dxe5 {[%clk 0:02:39]}  Nxe5 {[%clk 0:02:48]} 15. Be2 {[%clk 0:02:39]}  Qe7 {[%clk 0:02:40]} 16. Qc2 {[%clk 0:02:39]}  Rfd8 {[%clk 0:02:40]} 17. Rfd1 {[%clk 0:02:37]}  Bb4 {[%clk 0:02:28]} 18. Be1 {[%clk 0:02:36]}  Rxd1 {[%clk 0:02:24]} 19. Rxd1 {[%clk 0:02:35]}  Rd8 {[%clk 0:02:25]} 20. a3 {[%clk 0:02:34]}  Rxd1 {[%clk 0:02:21]} 21. Qxd1 {[%clk 0:02:33]}  Bxc3 {[%clk 0:02:16]} 22. Bxc3 {[%clk 0:02:32]}  Ne4 {[%clk 0:02:13]} 23. Be1 {[%clk 0:02:31]}  Qd6 {[%clk 0:01:56]} 24. Qxd6 {[%clk 0:02:22]}  Nxd6 {[%clk 0:01:57]} 25. Bc3 {[%clk 0:02:22]}  f6 {[%clk 0:01:45]} 26. h4 {[%clk 0:02:09]}  Kf7 {[%clk 0:01:41]} 27. f3 {[%clk 0:02:09]}  c5 {[%clk 0:01:24]} 28. Kf2 {[%clk 0:02:06]}  Ke6 {[%clk 0:01:21]} 29. e4 {[%clk 0:02:04]}  Nc6 {[%clk 0:01:12]} 30. Ke3 {[%clk 0:02:03]}  b5 {[%clk 0:00:49]} 31. f4 {[%clk 0:01:46]}  a5 {[%clk 0:00:49]} 32. g4 {[%clk 0:01:39]}  c4 {[%clk 0:00:33]} 33. e5 {[%clk 0:01:00]}  fxe5 {[%clk 0:00:24]} 34. fxe5 {[%clk 0:01:00]}  Nxe5 {[%clk 0:00:15]} 35. Bxa5 {[%clk 0:01:00]}  Ne8 {[%clk 0:00:08]} 36. Kd4 {[%clk 0:00:39]}  Nf6 {[%clk 0:00:08]} 37. Kc5 {[%clk 0:00:33]}  Nd3+ {[%clk 0:00:06]} 38. Kxb5 {[%clk 0:00:28]}  Nxb2 {[%clk 0:00:06]} 39. g5 {[%clk 0:00:28]}  Ne4 {[%clk 0:00:02]} 40. Bxc4+ {[%clk 0:00:28]}  Nxc4 {[%clk 0:00:02]} 41. Kxc4 {[%clk 0:00:29]}  Kf5 {[%clk 0:00:02]} 42. Bb4 {[%clk 0:00:24]} 1-0


[Site "https://www.chess.com"]

[Event "Titled Tuesday Blitz April 18 Early 2023"]
[White "Tang, Andrew"]
[Black "Lewtak, Damian"]
[WhiteFideId "2059630"]
[BlackFideId "1141724"]
[WhiteElo "2596"]
[BlackElo "2302"]
[Result "1-0"]
[Round "02"]
[TimeControl "180+2"]
[Date "2023.04.18"]
[WhiteClock "0:00:03"]
[BlackClock "0:00:02"]

1. d4 {[%clk 0:03:00]}  d5 {[%clk 0:03:00]} 2. Bf4 {[%clk 0:03:00]}  Nf6 {[%clk 0:02:59]} 3. e3 {[%clk 0:02:59]}  e6 {[%clk 0:03:00]} 4. Nf3 {[%clk 0:02:57]}  Bd6 {[%clk 0:03:00]} 5. Nbd2 {[%clk 0:02:47]}  Bxf4 {[%clk 0:02:59]} 6. exf4 {[%clk 0:02:46]}  b6 {[%clk 0:02:55]} 7. c3 {[%clk 0:02:46]}  O-O {[%clk 0:02:55]} 8. h4 {[%clk 0:02:44]}  Ba6 {[%clk 0:02:54]} 9. Bxa6 {[%clk 0:02:43]}  Nxa6 {[%clk 0:02:55]} 10. h5 {[%clk 0:02:43]}  h6 {[%clk 0:02:54]} 11. Ne5 {[%clk 0:02:43]}  Nd7 {[%clk 0:02:48]} 12. g4 {[%clk 0:02:38]}  Nxe5 {[%clk 0:02:47]} 13. fxe5 {[%clk 0:02:30]}  f6 {[%clk 0:02:40]} 14. Nf3 {[%clk 0:02:05]}  c5 {[%clk 0:02:39]} 15. Qe2 {[%clk 0:02:03]}  Nc7 {[%clk 0:02:28]} 16. O-O-O {[%clk 0:02:01]}  cxd4 {[%clk 0:02:27]} 17. cxd4 {[%clk 0:01:57]}  Qd7 {[%clk 0:02:16]} 18. Kb1 {[%clk 0:01:55]}  Qb5 {[%clk 0:02:12]} 19. Qe3 {[%clk 0:01:55]}  Rf7 {[%clk 0:01:52]} 20. exf6 {[%clk 0:01:51]}  Rxf6 {[%clk 0:01:49]} 21. g5 {[%clk 0:01:40]}  hxg5 {[%clk 0:01:48]} 22. Rhg1 {[%clk 0:01:39]}  Rf5 {[%clk 0:01:35]} 23. Nxg5 {[%clk 0:01:37]}  Rf6 {[%clk 0:01:05]} 24. Rg2 {[%clk 0:00:48]}  Raf8 {[%clk 0:01:02]} 25. Rdg1 {[%clk 0:00:47]}  Kh8 {[%clk 0:00:45]} 26. h6 {[%clk 0:00:34]}  Rxh6 {[%clk 0:00:35]} 27. Nf3 {[%clk 0:00:08]}  Rh7 {[%clk 0:00:11]} 28. Ne5 {[%clk 0:00:08]}  Kg8 {[%clk 0:00:02]} 29. Qg5 {[%clk 0:00:03]}  Qe8 {[%clk 0:00:03]} 30. Qg3 {[%clk 0:00:02]}  Rf6 {[%clk 0:00:02]} 31. a3 {[%clk 0:00:02]}  Qe7 {[%clk 0:00:03]} 32. Ng6 {[%clk 0:00:02]}  Qf7 {[%clk 0:00:03]} 33. Qd6 {[%clk 0:00:01]}  Ne8 {[%clk 0:00:03]} 34. Qd8 {[%clk 0:00:01]}  Rh6 {[%clk 0:00:03]} 35. Ne5 {[%clk 0:00:02]}  Qf8 {[%clk 0:00:03]} 36. Qd7 {[%clk 0:00:02]}  Rh7 {[%clk 0:00:02]} 37. Rg3 {[%clk 0:00:02]}  Rxf2 {[%clk 0:00:02]} 38. Ng6 {[%clk 0:00:02]}  Rf1+ {[%clk 0:00:03]} 39. Ka2 {[%clk 0:00:02]}  Qf7 {[%clk 0:00:02]} 40. Rxf1 {[%clk 0:00:03]} 1-0


[Site "https://www.chess.com"]

[Event "Titled Tuesday Blitz April 18 Early 2023"]
[White "Tregubov, Pavel V."]
[Black "Bryant, John Daniel"]
[WhiteFideId "4115341"]
[BlackFideId "2031280"]
[WhiteElo "2425"]
[BlackElo "2455"]
[Result "0-1"]
[Round "02"]
[TimeControl "180+2"]
[Date "2023.04.18"]
[WhiteClock "0:00:01"]
[BlackClock "0:00:01"]

1. e4 {[%clk 0:03:00]}  e5 {[%clk 0:02:58]} 2. Nf3 {[%clk 0:03:00]}  Nc6 {[%clk 0:02:58]} 3. Bb5 {[%clk 0:03:01]}  Nf6 {[%clk 0:02:59]} 4. d4 {[%clk 0:03:01]}  exd4 {[%clk 0:02:21]} 5. O-O {[%clk 0:03:00]}  a6 {[%clk 0:02:13]} 6. Ba4 {[%clk 0:02:58]}  b5 {[%clk 0:01:18]} 7. Bb3 {[%clk 0:02:57]}  d6 {[%clk 0:01:10]} 8. Ng5 {[%clk 0:02:23]}  Ne5 {[%clk 0:01:10]} 9. f4 {[%clk 0:02:22]}  Nc4 {[%clk 0:01:08]} 10. Bxc4 {[%clk 0:02:19]}  bxc4 {[%clk 0:01:06]} 11. Qxd4 {[%clk 0:02:19]}  h6 {[%clk 0:00:51]} 12. Nf3 {[%clk 0:02:19]}  d5 {[%clk 0:00:51]} 13. exd5 {[%clk 0:02:01]}  Qxd5 {[%clk 0:00:51]} 14. Re1+ {[%clk 0:01:37]}  Be7 {[%clk 0:00:50]} 15. Nc3 {[%clk 0:01:34]}  Qxd4+ {[%clk 0:00:48]} 16. Nxd4 {[%clk 0:01:35]}  Bd7 {[%clk 0:00:44]} 17. b3 {[%clk 0:01:30]}  c5 {[%clk 0:00:40]} 18. Ba3 {[%clk 0:01:26]}  Kd8 {[%clk 0:00:26]} 19. Nf3 {[%clk 0:01:21]}  Be6 {[%clk 0:00:19]} 20. Rad1+ {[%clk 0:01:13]}  Ke8 {[%clk 0:00:19]} 21. f5 {[%clk 0:01:07]}  Bxf5 {[%clk 0:00:18]} 22. Bxc5 {[%clk 0:01:07]}  Be6 {[%clk 0:00:18]} 23. Bxe7 {[%clk 0:00:56]}  Kxe7 {[%clk 0:00:19]} 24. Nd4 {[%clk 0:00:53]}  Rhc8 {[%clk 0:00:18]} 25. b4 {[%clk 0:00:46]}  Rab8 {[%clk 0:00:15]} 26. a3 {[%clk 0:00:45]}  a5 {[%clk 0:00:14]} 27. b5 {[%clk 0:00:43]}  a4 {[%clk 0:00:12]} 28. Nc6+ {[%clk 0:00:42]}  Rxc6 {[%clk 0:00:12]} 29. bxc6 {[%clk 0:00:43]}  Rc8 {[%clk 0:00:11]} 30. Nb5 {[%clk 0:00:33]}  Rxc6 {[%clk 0:00:11]} 31. Nd4 {[%clk 0:00:34]}  Rb6 {[%clk 0:00:09]} 32. Nf5+ {[%clk 0:00:31]}  Ke8 {[%clk 0:00:08]} 33. Nxg7+ {[%clk 0:00:31]}  Kf8 {[%clk 0:00:08]} 34. Nxe6+ {[%clk 0:00:29]}  fxe6 {[%clk 0:00:09]} 35. Rd4 {[%clk 0:00:28]}  Rc6 {[%clk 0:00:09]} 36. Rh4 {[%clk 0:00:24]}  h5 {[%clk 0:00:08]} 37. h3 {[%clk 0:00:24]}  Ke7 {[%clk 0:00:07]} 38. Rd4 {[%clk 0:00:22]}  Rc5 {[%clk 0:00:07]} 39. Kh2 {[%clk 0:00:21]}  Nd5 {[%clk 0:00:07]} 40. Ree4 {[%clk 0:00:20]}  Nb6 {[%clk 0:00:05]} 41. c3 {[%clk 0:00:17]}  Rb5 {[%clk 0:00:05]} 42. Rd2 {[%clk 0:00:14]}  Rb3 {[%clk 0:00:05]} 43. Rde2 {[%clk 0:00:15]}  Kd7 {[%clk 0:00:03]} 44. Rxe6 {[%clk 0:00:15]}  Nd5 {[%clk 0:00:04]} 45. Rh6 {[%clk 0:00:13]}  Rxc3 {[%clk 0:00:02]} 46. Rxh5 {[%clk 0:00:11]}  Rd3 {[%clk 0:00:03]} 47. Rf2 {[%clk 0:00:11]}  c3 {[%clk 0:00:02]} 48. Rf7+ {[%clk 0:00:10]}  Ke6 {[%clk 0:00:02]} 49. Rf8 {[%clk 0:00:07]}  c2 {[%clk 0:00:02]} 50. Rh6+ {[%clk 0:00:01]}  Ke7 {[%clk 0:00:01]} 0-1


[Site "https://www.chess.com"]